[Event "Titled Tuesday Blitz February 15 Late 2022"]
[White "Tang, Andrew"]
[Black "Rasulov, Vugar"]
[WhiteFideId "2059630"]
[BlackFideId "13402390"]
[WhiteElo "2584"]
[BlackElo "2560"]
[Result "1-0"]
[Round "07"]
[TimeControl "180+1"]
[Date "2022.02.15"]
[WhiteClock "0:00:08"]
[BlackClock "0:00:05"]

1. d4 {[%clk 0:03:00]}  Nf6 {[%clk 0:03:00]} 2. c4 {[%clk 0:02:57]}  g6 {[%clk 0:02:59]} 3. f3 {[%clk 0:02:57]}  c5 {[%clk 0:02:56]} 4. d5 {[%clk 0:02:57]}  Bg7 {[%clk 0:02:55]} 5. e4 {[%clk 0:02:58]}  O-O {[%clk 0:02:56]} 6. Nc3 {[%clk 0:02:58]}  e6 {[%clk 0:02:55]} 7. Nge2 {[%clk 0:02:59]}  exd5 {[%clk 0:02:51]} 8. cxd5 {[%clk 0:03:00]}  d6 {[%clk 0:02:50]} 9. Ng3 {[%clk 0:03:00]}  a6 {[%clk 0:02:50]} 10. a4 {[%clk 0:03:00]}  h5 {[%clk 0:02:50]} 11. Bg5 {[%clk 0:02:59]}  Qa5 {[%clk 0:02:47]} 12. Qd2 {[%clk 0:02:59]}  b5 {[%clk 0:02:46]} 13. Be2 {[%clk 0:02:56]}  b4 {[%clk 0:02:45]} 14. Nd1 {[%clk 0:02:56]}  Nbd7 {[%clk 0:02:44]} 15. Ne3 {[%clk 0:02:54]}  Nh7 {[%clk 0:02:43]} 16. Be7 {[%clk 0:02:54]}  Re8 {[%clk 0:02:41]} 17. Nc4 {[%clk 0:02:36]}  Qc7 {[%clk 0:02:41]} 18. Bxd6 {[%clk 0:02:37]}  Qd8 {[%clk 0:02:40]} 19. Nf1 {[%clk 0:02:23]}  Bd4 {[%clk 0:02:21]} 20. Nfe3 {[%clk 0:02:19]}  Qf6 {[%clk 0:02:18]} 21. Bg3 {[%clk 0:01:51]}  h4 {[%clk 0:02:05]} 22. Bf2 {[%clk 0:01:50]}  h3 {[%clk 0:02:06]} 23. O-O {[%clk 0:01:35]}  hxg2 {[%clk 0:02:05]} 24. Kxg2 {[%clk 0:01:36]}  Ne5 {[%clk 0:01:51]} 25. Nxe5 {[%clk 0:01:22]}  Rxe5 {[%clk 0:01:47]} 26. Bg3 {[%clk 0:01:19]}  Ng5 {[%clk 0:01:37]} 27. Ng4 {[%clk 0:00:37]}  Bxg4 {[%clk 0:01:31]} 28. fxg4 {[%clk 0:00:38]}  Qh8 {[%clk 0:01:20]} 29. h4 {[%clk 0:00:07]}  Nxe4 {[%clk 0:01:20]} 30. Bxe5 {[%clk 0:00:06]}  Bxe5 {[%clk 0:01:09]} 31. Qe3 {[%clk 0:00:05]}  Nd6 {[%clk 0:01:00]} 32. h5 {[%clk 0:00:06]}  Re8 {[%clk 0:00:59]} 33. Rad1 {[%clk 0:00:05]}  Bxb2 {[%clk 0:00:55]} 34. Qf3 {[%clk 0:00:04]}  Be5 {[%clk 0:00:52]} 35. Bxa6 {[%clk 0:00:04]}  c4 {[%clk 0:00:51]} 36. Bxc4 {[%clk 0:00:04]}  Rc8 {[%clk 0:00:46]} 37. Bd3 {[%clk 0:00:03]}  b3 {[%clk 0:00:44]} 38. Rh1 {[%clk 0:00:03]}  g5 {[%clk 0:00:41]} 39. Qe3 {[%clk 0:00:02]}  Bf4 {[%clk 0:00:36]} 40. Qf2 {[%clk 0:00:03]}  Qc3 {[%clk 0:00:33]} 41. Rhe1 {[%clk 0:00:03]}  b2 {[%clk 0:00:33]} 42. Bb1 {[%clk 0:00:04]}  Nc4 {[%clk 0:00:29]} 43. Qf3 {[%clk 0:00:01]}  Qf6 {[%clk 0:00:19]} 44. Qd3 {[%clk 0:00:01]}  Ne5 {[%clk 0:00:17]} 45. Qh7+ {[%clk 0:00:02]}  Kf8 {[%clk 0:00:17]} 46. Qf5 {[%clk 0:00:02]}  Qxf5 {[%clk 0:00:13]} 47. Bxf5 {[%clk 0:00:03]}  Rb8 {[%clk 0:00:11]} 48. h6 {[%clk 0:00:04]}  Nc4 {[%clk 0:00:11]} 49. Kf3 {[%clk 0:00:04]}  Nd6 {[%clk 0:00:08]} 50. Bb1 {[%clk 0:00:04]}  Nc4 {[%clk 0:00:06]} 51. h7 {[%clk 0:00:04]}  Kg7 {[%clk 0:00:06]} 52. Rh1 {[%clk 0:00:04]}  Ne5+ {[%clk 0:00:06]} 53. Kg2 {[%clk 0:00:04]}  Kh8 {[%clk 0:00:06]} 54. Bf5 {[%clk 0:00:03]}  Nc4 {[%clk 0:00:06]} 55. Rb1 {[%clk 0:00:02]}  Ne3+ {[%clk 0:00:06]} 56. Kf3 {[%clk 0:00:03]}  Nxd5 {[%clk 0:00:05]} 57. Rhe1 {[%clk 0:00:02]}  Nc3 {[%clk 0:00:05]} 58. Rxb2 {[%clk 0:00:02]}  Rd8 {[%clk 0:00:03]} 59. Rb4 {[%clk 0:00:02]}  Kg7 {[%clk 0:00:01]} 60. Rc4 {[%clk 0:00:02]}  Nd5 {[%clk 0:00:01]} 61. Rh1 {[%clk 0:00:02]}  Kh8 {[%clk 0:00:01]} 62. Rd4 {[%clk 0:00:03]}  Be5 {[%clk 0:00:01]} 63. Rd3 {[%clk 0:00:04]}  Bf6 {[%clk 0:00:01]} 64. Rhd1 {[%clk 0:00:04]}  Re8 {[%clk 0:00:01]} 65. Rxd5 {[%clk 0:00:04]}  Kg7 {[%clk 0:00:02]} 66. Rd7 {[%clk 0:00:05]}  Rb8 {[%clk 0:00:03]} 67. R7d3 {[%clk 0:00:05]}  Rb4 {[%clk 0:00:03]} 68. Ra3 {[%clk 0:00:05]}  Rf4+ {[%clk 0:00:03]} 69. Kg2 {[%clk 0:00:06]}  Rc4 {[%clk 0:00:03]} 70. Ra2 {[%clk 0:00:07]}  Rb4 {[%clk 0:00:03]} 71. a5 {[%clk 0:00:07]}  Rb7 {[%clk 0:00:03]} 72. a6 {[%clk 0:00:08]}  Ra7 {[%clk 0:00:04]} 73. Rd7 {[%clk 0:00:08]}  Kh8 {[%clk 0:00:05]} 74. Rxa7 {[%clk 0:00:08]} 1-0


[Site "https://www.chess.com"]

[Event "Titled Tuesday Blitz February 15 Late 2022"]
[White "Tari, Aryan"]
[Black "Hambleton, Aman"]
[WhiteFideId "1510045"]
[BlackFideId "2606577"]
[WhiteElo "2567"]
[BlackElo "2552"]
[Result "0-1"]
[Round "07"]
[TimeControl "180+1"]
[Date "2022.02.15"]
[WhiteClock "0:00:01"]
[BlackClock "0:00:04"]

1. c4 {[%clk 0:02:55]}  c5 {[%clk 0:02:55]} 2. g3 {[%clk 0:02:53]}  e6 {[%clk 0:02:46]} 3. Bg2 {[%clk 0:02:49]}  d5 {[%clk 0:02:46]} 4. cxd5 {[%clk 0:02:42]}  exd5 {[%clk 0:02:46]} 5. Nf3 {[%clk 0:02:42]}  d4 {[%clk 0:02:42]} 6. O-O {[%clk 0:02:40]}  Nc6 {[%clk 0:02:27]} 7. d3 {[%clk 0:02:35]}  Nf6 {[%clk 0:02:21]} 8. Na3 {[%clk 0:02:31]}  Be7 {[%clk 0:02:13]} 9. Bg5 {[%clk 0:02:31]}  h6 {[%clk 0:02:06]} 10. Bxf6 {[%clk 0:02:30]}  Bxf6 {[%clk 0:02:07]} 11. Rc1 {[%clk 0:02:29]}  Be7 {[%clk 0:01:57]} 12. Nd2 {[%clk 0:02:19]}  Bd7 {[%clk 0:01:21]} 13. Ne4 {[%clk 0:01:51]}  b6 {[%clk 0:01:19]} 14. Nc4 {[%clk 0:01:43]}  O-O {[%clk 0:01:16]} 15. a3 {[%clk 0:01:38]}  Rb8 {[%clk 0:01:08]} 16. a4 {[%clk 0:01:19]}  Nb4 {[%clk 0:00:53]} 17. Na3 {[%clk 0:01:14]}  Bc6 {[%clk 0:00:45]} 18. Nd2 {[%clk 0:01:07]}  Bxg2 {[%clk 0:00:31]} 19. Kxg2 {[%clk 0:01:08]}  Re8 {[%clk 0:00:32]} 20. Nf3 {[%clk 0:01:04]}  Bf8 {[%clk 0:00:30]} 21. Re1 {[%clk 0:01:05]}  Qd7 {[%clk 0:00:29]} 22. Qb3 {[%clk 0:01:02]}  Re6 {[%clk 0:00:26]} 23. Nc2 {[%clk 0:00:49]}  Nc6 {[%clk 0:00:21]} 24. Qb5 {[%clk 0:00:48]}  Rbe8 {[%clk 0:00:20]} 25. Kf1 {[%clk 0:00:45]}  Qd5 {[%clk 0:00:17]} 26. Qc4 {[%clk 0:00:20]}  Qf5 {[%clk 0:00:14]} 27. Ng1 {[%clk 0:00:08]}  Rf6 {[%clk 0:00:12]} 28. f3 {[%clk 0:00:07]}  Ne5 {[%clk 0:00:11]} 29. Qd5 {[%clk 0:00:07]}  Rd6 {[%clk 0:00:10]} 30. Qe4 {[%clk 0:00:06]}  Qd7 {[%clk 0:00:10]} 31. Qh4 {[%clk 0:00:05]}  Qxa4 {[%clk 0:00:06]} 32. f4 {[%clk 0:00:03]}  Ng6 {[%clk 0:00:04]} 33. Qg4 {[%clk 0:00:04]}  Qd7 {[%clk 0:00:04]} 34. Qh5 {[%clk 0:00:03]}  Rd5 {[%clk 0:00:04]} 35. Qf3 {[%clk 0:00:02]}  Ne7 {[%clk 0:00:03]} 36. g4 {[%clk 0:00:02]}  h5 {[%clk 0:00:02]} 37. h3 {[%clk 0:00:03]}  g6 {[%clk 0:00:03]} 38. Rcd1 {[%clk 0:00:02]}  Rd6 {[%clk 0:00:03]} 39. Qg3 {[%clk 0:00:02]}  hxg4 {[%clk 0:00:03]} 40. hxg4 {[%clk 0:00:03]}  Nd5 {[%clk 0:00:04]} 41. Nf3 {[%clk 0:00:03]}  Rf6 {[%clk 0:00:04]} 42. g5 {[%clk 0:00:01]}  Rxf4 {[%clk 0:00:04]} 43. e4 {[%clk 0:00:01]}  dxe3 {[%clk 0:00:04]} 44. Nxe3 {[%clk 0:00:01]}  Rxe3 {[%clk 0:00:04]} 0-1


[Site "https://www.chess.com"]

[Event "Titled Tuesday Blitz February 15 Late 2022"]
[White "Todorovic, Bojan"]
[Black "Levine, David"]
[WhiteFideId "917087"]
[BlackFideId "2011611"]
[WhiteElo "2266"]
[BlackElo "2151"]
[Result "1-0"]
[Round "07"]
[TimeControl "180+1"]
[Date "2022.02.16"]
[WhiteClock "0:01:16"]
[BlackClock "0:01:00"]

1. Nf3 {[%clk 0:02:59]}  Nf6 {[%clk 0:02:59]} 2. b3 {[%clk 0:02:58]}  g6 {[%clk 0:02:59]} 3. Bb2 {[%clk 0:02:57]}  Bg7 {[%clk 0:02:59]} 4. c4 {[%clk 0:02:58]}  O-O {[%clk 0:02:58]} 5. g3 {[%clk 0:02:58]}  d6 {[%clk 0:02:58]} 6. Bg2 {[%clk 0:02:57]}  e5 {[%clk 0:02:58]} 7. O-O {[%clk 0:02:58]}  Nc6 {[%clk 0:02:57]} 8. d4 {[%clk 0:02:56]}  e4 {[%clk 0:02:54]} 9. Ne1 {[%clk 0:02:54]}  Re8 {[%clk 0:02:53]} 10. Nc2 {[%clk 0:02:53]}  h5 {[%clk 0:02:48]} 11. Nc3 {[%clk 0:02:43]}  Bf5 {[%clk 0:02:46]} 12. Ne3 {[%clk 0:02:41]}  Qd7 {[%clk 0:02:45]} 13. Nxf5 {[%clk 0:02:40]}  gxf5 {[%clk 0:02:43]} 14. e3 {[%clk 0:02:30]}  h4 {[%clk 0:02:42]} 15. Ne2 {[%clk 0:02:29]}  hxg3 {[%clk 0:02:39]} 16. hxg3 {[%clk 0:02:22]}  Qd8 {[%clk 0:02:25]} 17. Nf4 {[%clk 0:02:20]}  Ne7 {[%clk 0:02:20]} 18. Bh3 {[%clk 0:02:18]}  Bh6 {[%clk 0:02:14]} 19. Nh5 {[%clk 0:02:13]}  Nh7 {[%clk 0:02:09]} 20. d5 {[%clk 0:02:09]}  c6 {[%clk 0:01:35]} 21. Kg2 {[%clk 0:01:58]}  cxd5 {[%clk 0:01:31]} 22. Qd4 {[%clk 0:01:51]}  Ng6 {[%clk 0:01:23]} 23. Nf4 {[%clk 0:01:30]}  Ne5 {[%clk 0:01:17]} 24. Bxf5 {[%clk 0:01:25]}  dxc4 {[%clk 0:01:06]} 25. Rh1 {[%clk 0:01:21]}  Qf6 {[%clk 0:01:06]} 26. Bxh7+ {[%clk 0:01:16]}  Kxh7 {[%clk 0:01:05]} 27. Qxe4+ {[%clk 0:01:17]}  Kg7 {[%clk 0:01:00]} 28. Nh5+ {[%clk 0:01:16]} 1-0


[Site "https://www.chess.com"]

[Event "Titled Tuesday Blitz February 15 Late 2022"]
[White "Vargas Pereda, Jesus Manue"]
[Black "Ardila, Oscar Humberto"]
[WhiteFideId "5115710"]
[BlackFideId "4404742"]
[WhiteElo "1765"]
[BlackElo "1898"]
[Result "1-0"]
[Round "07"]
[TimeControl "180+1"]
[Date "2022.02.16"]
[WhiteClock "0:00:30"]
[BlackClock "0:00:03"]

1. d4 {[%clk 0:03:00]}  Nf6 {[%clk 0:03:00]} 2. Bf4 {[%clk 0:02:59]}  e6 {[%clk 0:03:00]} 3. Nf3 {[%clk 0:02:59]}  Be7 {[%clk 0:03:00]} 4. e3 {[%clk 0:02:58]}  O-O {[%clk 0:03:01]} 5. Bd3 {[%clk 0:02:58]}  d6 {[%clk 0:03:02]} 6. Nbd2 {[%clk 0:02:57]}  Nbd7 {[%clk 0:02:59]} 7. O-O {[%clk 0:02:57]}  b6 {[%clk 0:02:59]} 8. e4 {[%clk 0:02:51]}  Bb7 {[%clk 0:02:59]} 9. c3 {[%clk 0:02:51]}  c5 {[%clk 0:02:56]} 10. e5 {[%clk 0:02:49]}  dxe5 {[%clk 0:02:56]} 11. dxe5 {[%clk 0:02:48]}  Nd5 {[%clk 0:02:56]} 12. Bg3 {[%clk 0:02:43]}  Re8 {[%clk 0:02:55]} 13. Ne4 {[%clk 0:02:39]}  Nf8 {[%clk 0:02:54]} 14. Qe2 {[%clk 0:02:38]}  Ng6 {[%clk 0:02:01]} 15. Rad1 {[%clk 0:02:36]}  Qc7 {[%clk 0:01:59]} 16. Qd2 {[%clk 0:02:13]}  Rad8 {[%clk 0:01:54]} 17. Qc1 {[%clk 0:02:07]}  Rd7 {[%clk 0:01:35]} 18. Nfg5 {[%clk 0:02:07]}  Red8 {[%clk 0:01:33]} 19. f4 {[%clk 0:02:06]}  c4 {[%clk 0:01:28]} 20. Bc2 {[%clk 0:02:03]}  Bc5+ {[%clk 0:01:27]} 21. Nxc5 {[%clk 0:01:58]}  Qxc5+ {[%clk 0:01:26]} 22. Bf2 {[%clk 0:01:51]}  Qc7 {[%clk 0:01:23]} 23. Bd4 {[%clk 0:01:48]}  a6 {[%clk 0:01:06]} 24. Rde1 {[%clk 0:01:48]}  b5 {[%clk 0:01:03]} 25. f5 {[%clk 0:01:42]}  exf5 {[%clk 0:00:48]} 26. Bxf5 {[%clk 0:01:42]}  Re7 {[%clk 0:00:45]} 27. e6 {[%clk 0:01:36]}  f6 {[%clk 0:00:17]} 28. Nxh7 {[%clk 0:00:54]}  Kxh7 {[%clk 0:00:15]} 29. Qd1 {[%clk 0:00:54]}  Nf4 {[%clk 0:00:10]} 30. Qg4 {[%clk 0:00:49]}  Qc6 {[%clk 0:00:08]} 31. Rxf4 {[%clk 0:00:43]}  Qxg2+ {[%clk 0:00:08]} 32. Qxg2 {[%clk 0:00:42]}  Bxg2 {[%clk 0:00:09]} 33. Rg4 {[%clk 0:00:42]}  Bh3 {[%clk 0:00:06]} 34. Bxg6+ {[%clk 0:00:40]}  Kg8 {[%clk 0:00:07]} 35. Bf7+ {[%clk 0:00:34]}  Kf8 {[%clk 0:00:05]} 36. Rh4 {[%clk 0:00:34]}  Rxf7 {[%clk 0:00:06]} 37. exf7 {[%clk 0:00:33]}  Kxf7 {[%clk 0:00:06]} 38. Rxh3 {[%clk 0:00:33]}  g5 {[%clk 0:00:06]} 39. Rhe3 {[%clk 0:00:33]}  Kg6 {[%clk 0:00:05]} 40. Re6 {[%clk 0:00:33]}  Kf5 {[%clk 0:00:04]} 41. Rxf6+ {[%clk 0:00:33]}  Kg4 {[%clk 0:00:05]} 42. Re3 {[%clk 0:00:30]}  a5 {[%clk 0:00:04]} 43. Rg3+ {[%clk 0:00:30]}  Kh4 {[%clk 0:00:03]} 44. Rh6# {[%clk 0:00:30]} 1-0


[Site "https://www.chess.com"]

[Event "Titled Tuesday Blitz February 15 Late 2022"]
[White "Wagner, Dennis"]
[Black "Fishbein, Alexander"]
[WhiteFideId "24650684"]
[BlackFideId "2000377"]
[WhiteElo "2355"]
[BlackElo "2442"]
[Result "1-0"]
[Round "07"]
[TimeControl "180+1"]
[Date "2022.02.15"]
[WhiteClock "0:00:12"]
[BlackClock "0:00:04"]

1. d4 {[%clk 0:03:00]}  Nf6 {[%clk 0:02:59]} 2. c4 {[%clk 0:03:01]}  g6 {[%clk 0:02:59]} 3. Nc3 {[%clk 0:03:01]}  Bg7 {[%clk 0:02:59]} 4. e4 {[%clk 0:03:00]}  d6 {[%clk 0:02:59]} 5. Be2 {[%clk 0:02:59]}  O-O {[%clk 0:02:59]} 6. Be3 {[%clk 0:02:59]}  a6 {[%clk 0:02:55]} 7. Qd2 {[%clk 0:02:58]}  c6 {[%clk 0:02:53]} 8. a4 {[%clk 0:02:51]}  a5 {[%clk 0:02:52]} 9. h4 {[%clk 0:02:50]}  e5 {[%clk 0:02:43]} 10. d5 {[%clk 0:02:50]}  cxd5 {[%clk 0:02:39]} 11. cxd5 {[%clk 0:02:49]}  h5 {[%clk 0:02:37]} 12. f3 {[%clk 0:02:46]}  Na6 {[%clk 0:02:34]} 13. Bxa6 {[%clk 0:02:44]}  bxa6 {[%clk 0:02:31]} 14. Nge2 {[%clk 0:02:45]}  Rb8 {[%clk 0:02:27]} 15. O-O-O {[%clk 0:02:44]}  Bd7 {[%clk 0:02:18]} 16. Kb1 {[%clk 0:02:41]}  Qe8 {[%clk 0:02:16]} 17. Qc2 {[%clk 0:02:33]}  Rb4 {[%clk 0:02:15]} 18. Rc1 {[%clk 0:02:29]}  Bxa4 {[%clk 0:02:10]} 19. Nxa4 {[%clk 0:02:29]}  Rxa4 {[%clk 0:02:02]} 20. Bd2 {[%clk 0:02:29]}  Qd7 {[%clk 0:01:54]} 21. Qc6 {[%clk 0:02:09]}  Rb8 {[%clk 0:01:48]} 22. Qxd7 {[%clk 0:01:02]}  Nxd7 {[%clk 0:01:47]} 23. Rc6 {[%clk 0:01:02]}  Nc5 {[%clk 0:01:39]} 24. Kc2 {[%clk 0:00:35]}  Ra2 {[%clk 0:01:35]} 25. Rb1 {[%clk 0:00:27]}  Ra4 {[%clk 0:01:19]} 26. Rxd6 {[%clk 0:00:20]}  Rc4+ {[%clk 0:01:17]} 27. Bc3 {[%clk 0:00:20]}  a4 {[%clk 0:01:13]} 28. Rc6 {[%clk 0:00:20]}  Bf8 {[%clk 0:01:01]} 29. Ra1 {[%clk 0:00:20]}  f5 {[%clk 0:00:43]} 30. exf5 {[%clk 0:00:19]}  gxf5 {[%clk 0:00:41]} 31. Ng3 {[%clk 0:00:19]}  Rxh4 {[%clk 0:00:35]} 32. Nxf5 {[%clk 0:00:19]}  Rh2 {[%clk 0:00:34]} 33. Ne3 {[%clk 0:00:17]}  Kh7 {[%clk 0:00:23]} 34. Bxe5 {[%clk 0:00:15]}  Rb3 {[%clk 0:00:15]} 35. Bxh2 {[%clk 0:00:13]}  Rxe3 {[%clk 0:00:16]} 36. Rd1 {[%clk 0:00:12]}  Nb3 {[%clk 0:00:13]} 37. d6 {[%clk 0:00:10]}  Re2+ {[%clk 0:00:13]} 38. Kc3 {[%clk 0:00:11]}  Bg7+ {[%clk 0:00:12]} 39. Kb4 {[%clk 0:00:11]}  Rxb2 {[%clk 0:00:12]} 40. Kxa4 {[%clk 0:00:11]}  Nd4 {[%clk 0:00:10]} 41. Rxd4 {[%clk 0:00:10]}  Bxd4 {[%clk 0:00:09]} 42. d7 {[%clk 0:00:11]}  Bb6 {[%clk 0:00:06]} 43. Rxb6 {[%clk 0:00:11]}  Ra2+ {[%clk 0:00:05]} 44. Kb3 {[%clk 0:00:11]}  Rd2 {[%clk 0:00:04]} 45. Rd6 {[%clk 0:00:11]}  Rxg2 {[%clk 0:00:04]} 46. d8=Q {[%clk 0:00:12]} 1-0


[Site "https://www.chess.com"]

[Event "Titled Tuesday Blitz February 15 Late 2022"]
[White "Yedidia, Daniel"]
[Black "Pinheiro, Iung Alicio de O."]
[WhiteFideId "30905907"]
[BlackFideId "2104350"]
[WhiteElo "2490"]
[BlackElo "2635"]
[Result "1-0"]
[Round "07"]
[TimeControl "180+1"]
[Date "2022.02.16"]
[WhiteClock "0:00:07"]
[BlackClock "0:00:06"]

1. d4 {[%clk 0:03:00]}  Nf6 {[%clk 0:02:54]} 2. c4 {[%clk 0:03:01]}  g6 {[%clk 0:02:54]} 3. Nc3 {[%clk 0:02:58]}  d5 {[%clk 0:02:54]} 4. cxd5 {[%clk 0:02:58]}  Nxd5 {[%clk 0:02:54]} 5. Bd2 {[%clk 0:02:59]}  Bg7 {[%clk 0:02:54]} 6. e4 {[%clk 0:02:59]}  Nb6 {[%clk 0:02:54]} 7. Be3 {[%clk 0:02:58]}  O-O {[%clk 0:02:52]} 8. Qd2 {[%clk 0:02:58]}  Nc6 {[%clk 0:02:43]} 9. Nf3 {[%clk 0:02:55]}  Bg4 {[%clk 0:02:42]} 10. d5 {[%clk 0:02:53]}  Bxf3 {[%clk 0:02:24]} 11. gxf3 {[%clk 0:02:42]}  Ne5 {[%clk 0:02:22]} 12. Be2 {[%clk 0:02:36]}  c6 {[%clk 0:02:21]} 13. dxc6 {[%clk 0:02:28]}  bxc6 {[%clk 0:02:15]} 14. b3 {[%clk 0:02:15]}  Qc8 {[%clk 0:02:02]} 15. Rc1 {[%clk 0:01:56]}  Rd8 {[%clk 0:01:57]} 16. Qc2 {[%clk 0:01:52]}  Qh3 {[%clk 0:01:56]} 17. f4 {[%clk 0:01:42]}  Nf3+ {[%clk 0:01:46]} 18. Bxf3 {[%clk 0:01:39]}  Qxf3 {[%clk 0:01:47]} 19. O-O {[%clk 0:01:31]}  Rac8 {[%clk 0:01:18]} 20. Qe2 {[%clk 0:01:23]}  Qh3 {[%clk 0:01:13]} 21. f3 {[%clk 0:01:12]}  Rd7 {[%clk 0:00:50]} 22. Rfd1 {[%clk 0:01:09]}  Rcd8 {[%clk 0:00:50]} 23. Rxd7 {[%clk 0:01:07]}  Rxd7 {[%clk 0:00:51]} 24. Nd1 {[%clk 0:00:31]}  Qe6 {[%clk 0:00:41]} 25. Nf2 {[%clk 0:00:31]}  h5 {[%clk 0:00:40]} 26. Qc2 {[%clk 0:00:26]}  Rc7 {[%clk 0:00:34]} 27. Nd3 {[%clk 0:00:17]}  c5 {[%clk 0:00:31]} 28. Nxc5 {[%clk 0:00:15]}  Qh3 {[%clk 0:00:31]} 29. Qg2 {[%clk 0:00:14]}  Qc8 {[%clk 0:00:31]} 30. b4 {[%clk 0:00:14]}  a5 {[%clk 0:00:27]} 31. a3 {[%clk 0:00:14]}  axb4 {[%clk 0:00:25]} 32. axb4 {[%clk 0:00:15]}  Nd7 {[%clk 0:00:25]} 33. Qf2 {[%clk 0:00:14]}  Nb6 {[%clk 0:00:23]} 34. Rd1 {[%clk 0:00:14]}  Nc4 {[%clk 0:00:23]} 35. Bd4 {[%clk 0:00:14]}  e5 {[%clk 0:00:23]} 36. fxe5 {[%clk 0:00:14]}  Nxe5 {[%clk 0:00:24]} 37. Bxe5 {[%clk 0:00:12]}  Bxe5 {[%clk 0:00:24]} 38. Qd2 {[%clk 0:00:12]}  Qh3 {[%clk 0:00:22]} 39. Qg2 {[%clk 0:00:11]}  Qc8 {[%clk 0:00:21]} 40. Qd2 {[%clk 0:00:10]}  Kg7 {[%clk 0:00:20]} 41. Qg2 {[%clk 0:00:08]}  Rc6 {[%clk 0:00:16]} 42. Rd5 {[%clk 0:00:09]}  Qe8 {[%clk 0:00:15]} 43. Qg5 {[%clk 0:00:06]}  f6 {[%clk 0:00:12]} 44. Qd2 {[%clk 0:00:06]}  Rc7 {[%clk 0:00:12]} 45. f4 {[%clk 0:00:06]}  Bxf4 {[%clk 0:00:04]} 46. Qxf4 {[%clk 0:00:05]}  Re7 {[%clk 0:00:05]} 47. Qd2 {[%clk 0:00:04]}  g5 {[%clk 0:00:04]} 48. Rd7 {[%clk 0:00:04]}  Kg6 {[%clk 0:00:05]} 49. Rxe7 {[%clk 0:00:04]}  Qxe7 {[%clk 0:00:06]} 50. Qd5 {[%clk 0:00:05]}  Qa7 {[%clk 0:00:06]} 51. Qg8+ {[%clk 0:00:04]}  Kh6 {[%clk 0:00:06]} 52. Qh8+ {[%clk 0:00:04]}  Kg6 {[%clk 0:00:06]} 53. Qe8+ {[%clk 0:00:05]}  Kh6 {[%clk 0:00:06]} 54. Qa4 {[%clk 0:00:05]}  Qe7 {[%clk 0:00:05]} 55. Qc6 {[%clk 0:00:05]}  Qe5 {[%clk 0:00:06]} 56. Qe6 {[%clk 0:00:04]}  Qa1+ {[%clk 0:00:06]} 57. Kg2 {[%clk 0:00:04]}  Qb2+ {[%clk 0:00:06]} 58. Kf3 {[%clk 0:00:05]}  Qc3+ {[%clk 0:00:07]} 59. Ke2 {[%clk 0:00:06]}  Qc2+ {[%clk 0:00:07]} 60. Ke3 {[%clk 0:00:06]}  Qc3+ {[%clk 0:00:08]} 61. Nd3 {[%clk 0:00:07]}  Qa1 {[%clk 0:00:08]} 62. e5 {[%clk 0:00:07]}  Qg1+ {[%clk 0:00:08]} 63. Ke4 {[%clk 0:00:05]}  Qg2+ {[%clk 0:00:08]} 64. Kd4 {[%clk 0:00:05]}  Qxh2 {[%clk 0:00:07]} 65. Qxf6+ {[%clk 0:00:05]}  Kh7 {[%clk 0:00:08]} 66. e6 {[%clk 0:00:05]}  Qg1+ {[%clk 0:00:08]} 67. Kc4 {[%clk 0:00:05]}  Qd1 {[%clk 0:00:07]} 68. Qf5+ {[%clk 0:00:05]}  Kh6 {[%clk 0:00:07]} 69. e7 {[%clk 0:00:05]}  Qc2+ {[%clk 0:00:07]} 70. Kb5 {[%clk 0:00:05]}  Qc7 {[%clk 0:00:06]} 71. Qe6+ {[%clk 0:00:05]}  Kh7 {[%clk 0:00:06]} 72. Qf7+ {[%clk 0:00:05]}  Kh6 {[%clk 0:00:06]} 73. e8=Q {[%clk 0:00:05]}  Qb7+ {[%clk 0:00:06]} 74. Kc4 {[%clk 0:00:06]}  Qa6+ {[%clk 0:00:04]} 75. Qb5 {[%clk 0:00:06]}  Qa2+ {[%clk 0:00:04]} 76. Kd4 {[%clk 0:00:04]}  Qxf7 {[%clk 0:00:05]} 77. Qc6+ {[%clk 0:00:04]}  Kg7 {[%clk 0:00:05]} 78. Ne5 {[%clk 0:00:04]}  Qf2+ {[%clk 0:00:05]} 79. Kd5 {[%clk 0:00:04]}  Qd2+ {[%clk 0:00:05]} 80. Ke6 {[%clk 0:00:04]}  Qa2+ {[%clk 0:00:06]} 81. Ke7 {[%clk 0:00:04]}  Qg8 {[%clk 0:00:05]} 82. Qg6+ {[%clk 0:00:05]}  Kh8 {[%clk 0:00:05]} 83. Nf7+ {[%clk 0:00:05]}  Qxf7+ {[%clk 0:00:05]} 84. Kxf7 {[%clk 0:00:06]}  g4 {[%clk 0:00:06]} 85. Qh6# {[%clk 0:00:07]} 1-0


[Site "https://www.chess.com"]